[Event "Titled Tuesday Blitz July 6 2021"]
[White "Yanchenko, Roman"]
[Black "Koellner, Ruben Gideon"]
[WhiteFideId "4137329"]
[BlackFideId "12993093"]
[WhiteElo "2514"]
[BlackElo "2512"]
[Result "0-1"]
[Round "02"]
[TimeControl "180+1"]
[Date "2021.07.06"]
[WhiteClock "0:00:09"]
[BlackClock "0:00:04"]

1. d4 {[%clk 0:03:00]}  d6 {[%clk 0:02:58]} 2. c4 {[%clk 0:03:01]}  e5 {[%clk 0:02:58]} 3. dxe5 {[%clk 0:03:00]}  dxe5 {[%clk 0:02:59]} 4. Qxd8+ {[%clk 0:03:00]}  Kxd8 {[%clk 0:02:58]} 5. Nc3 {[%clk 0:03:01]}  Be6 {[%clk 0:02:57]} 6. b3 {[%clk 0:02:59]}  c6 {[%clk 0:02:56]} 7. f4 {[%clk 0:02:58]}  Nd7 {[%clk 0:02:53]} 8. Nf3 {[%clk 0:02:58]}  f6 {[%clk 0:02:50]} 9. fxe5 {[%clk 0:02:56]}  Nxe5 {[%clk 0:02:36]} 10. Nxe5 {[%clk 0:02:57]}  fxe5 {[%clk 0:02:37]} 11. Bb2 {[%clk 0:02:57]}  Nf6 {[%clk 0:02:34]} 12. O-O-O {[%clk 0:02:50]}  Kc7 {[%clk 0:02:23]} 13. h3 {[%clk 0:02:46]}  Bc5 {[%clk 0:02:09]} 14. Na4 {[%clk 0:02:43]}  Be3+ {[%clk 0:02:09]} 15. Kb1 {[%clk 0:02:43]}  Bf5+ {[%clk 0:02:07]} 16. Ka1 {[%clk 0:02:43]}  Rhe8 {[%clk 0:02:02]} 17. Bc3 {[%clk 0:02:02]}  Bc2 {[%clk 0:01:49]} 18. Re1 {[%clk 0:02:02]}  Rad8 {[%clk 0:01:34]} 19. Kb2 {[%clk 0:01:58]}  Bg6 {[%clk 0:01:28]} 20. g4 {[%clk 0:01:39]}  Be4 {[%clk 0:01:20]} 21. Rh2 {[%clk 0:01:30]}  Bg1 {[%clk 0:01:19]} 22. Rg2 {[%clk 0:01:30]}  Bxg2 {[%clk 0:01:19]} 23. Bxg2 {[%clk 0:01:31]}  Be3 {[%clk 0:01:11]} 24. Kc2 {[%clk 0:01:29]}  Rd7 {[%clk 0:00:54]} 25. Rf1 {[%clk 0:01:25]}  Bd4 {[%clk 0:00:49]} 26. Ba5+ {[%clk 0:01:24]}  b6 {[%clk 0:00:48]} 27. Be1 {[%clk 0:01:23]}  e4 {[%clk 0:00:34]} 28. Nc3 {[%clk 0:01:18]}  e3 {[%clk 0:00:25]} 29. Nd1 {[%clk 0:01:07]}  Ne4 {[%clk 0:00:22]} 30. Rf4 {[%clk 0:01:02]}  Nf2 {[%clk 0:00:18]} 31. Nc3 {[%clk 0:00:56]}  Be5 {[%clk 0:00:11]} 32. Rf3 {[%clk 0:00:56]}  Bd4 {[%clk 0:00:09]} 33. Rf5 {[%clk 0:00:39]}  a5 {[%clk 0:00:07]} 34. a3 {[%clk 0:00:36]}  Bc5 {[%clk 0:00:07]} 35. b4 {[%clk 0:00:20]}  axb4 {[%clk 0:00:07]} 36. axb4 {[%clk 0:00:20]}  Bxb4 {[%clk 0:00:07]} 37. Bxf2 {[%clk 0:00:20]}  exf2 {[%clk 0:00:04]} 38. Rxf2 {[%clk 0:00:21]}  Bxc3 {[%clk 0:00:04]} 39. Kxc3 {[%clk 0:00:21]}  Re3+ {[%clk 0:00:04]} 40. Kc2 {[%clk 0:00:22]}  Rde7 {[%clk 0:00:04]} 41. Kd2 {[%clk 0:00:21]}  b5 {[%clk 0:00:04]} 42. cxb5 {[%clk 0:00:21]}  cxb5 {[%clk 0:00:05]} 43. Bf3 {[%clk 0:00:19]}  b4 {[%clk 0:00:04]} 44. Rf1 {[%clk 0:00:19]}  Ra3 {[%clk 0:00:03]} 45. Rc1+ {[%clk 0:00:20]}  Kb6 {[%clk 0:00:03]} 46. Rc8 {[%clk 0:00:20]}  Kb5 {[%clk 0:00:01]} 47. Rb8+ {[%clk 0:00:19]}  Kc4 {[%clk 0:00:02]} 48. Rc8+ {[%clk 0:00:20]}  Kb3 {[%clk 0:00:02]} 49. Bd5+ {[%clk 0:00:20]}  Kb2 {[%clk 0:00:03]} 50. Rc2+ {[%clk 0:00:20]}  Kb1 {[%clk 0:00:03]} 51. Rc1+ {[%clk 0:00:20]}  Kb2 {[%clk 0:00:03]} 52. Rc2+ {[%clk 0:00:18]}  Ka1 {[%clk 0:00:03]} 53. Rc1+ {[%clk 0:00:09]}  Kb2 {[%clk 0:00:03]} 54. e4 {[%clk 0:00:09]}  Rc3 {[%clk 0:00:02]} 55. Rf1 {[%clk 0:00:09]}  Rxh3 {[%clk 0:00:01]} 56. Rg1 {[%clk 0:00:08]}  Rh2+ {[%clk 0:00:01]} 57. Kd3 {[%clk 0:00:08]}  b3 {[%clk 0:00:01]} 58. g5 {[%clk 0:00:08]}  Rc7 {[%clk 0:00:01]} 59. e5 {[%clk 0:00:08]}  Rc3+ {[%clk 0:00:02]} 60. Kd4 {[%clk 0:00:08]}  Rd2+ {[%clk 0:00:02]} 61. Ke4 {[%clk 0:00:08]}  Rcc2 {[%clk 0:00:01]} 62. Rg4 {[%clk 0:00:07]}  Re2+ {[%clk 0:00:02]} 63. Kd4 {[%clk 0:00:07]}  Rcd2+ {[%clk 0:00:02]} 64. Kc5 {[%clk 0:00:08]}  Rxe5 {[%clk 0:00:02]} 65. Kb4 {[%clk 0:00:07]}  Rexd5 {[%clk 0:00:02]} 66. Kc4 {[%clk 0:00:07]}  R5d4+ {[%clk 0:00:02]} 67. Rxd4 {[%clk 0:00:07]}  Rxd4+ {[%clk 0:00:03]} 68. Kxd4 {[%clk 0:00:08]}  Kc2 {[%clk 0:00:04]} 69. g6 {[%clk 0:00:09]}  hxg6 {[%clk 0:00:04]} 0-1


[Site "https://www.chess.com"]

[Event "Titled Tuesday Blitz July 6 2021"]
[White "Yang, Kaiqi"]
[Black "Novikova, Galina"]
[WhiteFideId "8604398"]
[BlackFideId "4157095"]
[WhiteElo "2373"]
[BlackElo "1967"]
[Result "1-0"]
[Round "02"]
[TimeControl "180+1"]
[Date "2021.07.06"]
[WhiteClock "0:00:45"]
[BlackClock "0:00:11"]

1. e4 {[%clk 0:02:44]}  e6 {[%clk 0:02:59]} 2. d3 {[%clk 0:02:44]}  d5 {[%clk 0:02:59]} 3. Nd2 {[%clk 0:02:44]}  c5 {[%clk 0:02:53]} 4. Ngf3 {[%clk 0:02:44]}  Nc6 {[%clk 0:02:46]} 5. g3 {[%clk 0:02:43]}  Nf6 {[%clk 0:02:44]} 6. Bg2 {[%clk 0:02:43]}  g6 {[%clk 0:02:45]} 7. O-O {[%clk 0:02:42]}  Bg7 {[%clk 0:02:46]} 8. exd5 {[%clk 0:02:41]}  Nxd5 {[%clk 0:02:35]} 9. Nb3 {[%clk 0:02:41]}  Qe7 {[%clk 0:01:59]} 10. c4 {[%clk 0:02:37]}  Ndb4 {[%clk 0:01:51]} 11. Be3 {[%clk 0:02:36]}  Na6 {[%clk 0:01:51]} 12. d4 {[%clk 0:02:29]}  cxd4 {[%clk 0:01:39]} 13. Nbxd4 {[%clk 0:02:28]}  Nxd4 {[%clk 0:01:33]} 14. Bxd4 {[%clk 0:02:28]}  O-O {[%clk 0:01:17]} 15. Bxg7 {[%clk 0:02:26]}  Kxg7 {[%clk 0:01:18]} 16. Qd4+ {[%clk 0:02:16]}  Kg8 {[%clk 0:01:09]} 17. Rfd1 {[%clk 0:02:02]}  Nc5 {[%clk 0:00:53]} 18. b4 {[%clk 0:01:59]}  Nd7 {[%clk 0:00:52]} 19. c5 {[%clk 0:01:55]}  e5 {[%clk 0:00:50]} 20. Qc3 {[%clk 0:01:47]}  Re8 {[%clk 0:00:45]} 21. Nd2 {[%clk 0:01:37]}  Nf6 {[%clk 0:00:42]} 22. Nc4 {[%clk 0:01:36]}  Bg4 {[%clk 0:00:39]} 23. Re1 {[%clk 0:01:27]}  Qc7 {[%clk 0:00:30]} 24. Nxe5 {[%clk 0:01:12]}  Be6 {[%clk 0:00:25]} 25. Nxg6 {[%clk 0:01:03]}  hxg6 {[%clk 0:00:17]} 26. Qxf6 {[%clk 0:01:03]}  a5 {[%clk 0:00:16]} 27. a3 {[%clk 0:01:00]}  axb4 {[%clk 0:00:16]} 28. axb4 {[%clk 0:01:01]}  Rxa1 {[%clk 0:00:16]} 29. Rxa1 {[%clk 0:01:02]}  Qd7 {[%clk 0:00:16]} 30. h4 {[%clk 0:00:55]}  Bd5 {[%clk 0:00:11]} 31. Rd1 {[%clk 0:00:49]}  Qe6 {[%clk 0:00:10]} 32. Qxe6 {[%clk 0:00:46]}  Bxe6 {[%clk 0:00:11]} 33. Bxb7 {[%clk 0:00:45]} 1-0


[Site "https://www.chess.com"]

[Event "Titled Tuesday Blitz July 6 2021"]
[White "Zhigalko, Sergei"]
[Black "Shapiro, David"]
[WhiteFideId "13502956"]
[BlackFideId "24133523"]
[WhiteElo "2662"]
[BlackElo "2234"]
[Result "1-0"]
[Round "02"]
[TimeControl "180+1"]
[Date "2021.07.06"]
[WhiteClock "0:02:09"]
[BlackClock "0:01:41"]

1. e4 {[%clk 0:03:00]}  c6 {[%clk 0:02:57]} 2. d4 {[%clk 0:03:00]}  d5 {[%clk 0:02:58]} 3. e5 {[%clk 0:03:00]}  Bf5 {[%clk 0:02:58]} 4. Nf3 {[%clk 0:03:00]}  e6 {[%clk 0:02:57]} 5. Be2 {[%clk 0:03:01]}  Nd7 {[%clk 0:02:56]} 6. O-O {[%clk 0:03:01]}  h6 {[%clk 0:02:55]} 7. Nbd2 {[%clk 0:03:01]}  g5 {[%clk 0:02:53]} 8. Nb3 {[%clk 0:02:51]}  c5 {[%clk 0:02:46]} 9. Nxc5 {[%clk 0:02:47]}  Nxc5 {[%clk 0:02:36]} 10. dxc5 {[%clk 0:02:46]}  Ne7 {[%clk 0:02:37]} 11. Nd4 {[%clk 0:02:43]}  Bg7 {[%clk 0:02:34]} 12. Bb5+ {[%clk 0:02:41]}  Kf8 {[%clk 0:02:34]} 13. f4 {[%clk 0:02:41]}  g4 {[%clk 0:02:28]} 14. Be3 {[%clk 0:02:33]}  h5 {[%clk 0:02:23]} 15. c3 {[%clk 0:02:30]}  Qc7 {[%clk 0:02:22]} 16. Rc1 {[%clk 0:02:23]}  Be4 {[%clk 0:02:20]} 17. b4 {[%clk 0:02:22]}  Nf5 {[%clk 0:02:15]} 18. Nxf5 {[%clk 0:02:20]}  Bxf5 {[%clk 0:02:15]} 19. Bd3 {[%clk 0:02:19]}  Bxd3 {[%clk 0:02:14]} 20. Qxd3 {[%clk 0:02:19]}  Bh6 {[%clk 0:02:06]} 21. Rce1 {[%clk 0:02:16]}  a5 {[%clk 0:01:58]} 22. b5 {[%clk 0:02:13]}  Kg7 {[%clk 0:01:55]} 23. Bd4 {[%clk 0:02:11]}  a4 {[%clk 0:01:42]} 24. f5 {[%clk 0:02:10]}  Ra5 {[%clk 0:01:41]} 25. fxe6 {[%clk 0:02:10]}  fxe6 {[%clk 0:01:42]} 26. Rf6 {[%clk 0:02:09]}  Qd7 {[%clk 0:01:41]} 27. Qg6# {[%clk 0:02:09]} 1-0


[Site "https://www.chess.com"]

[Event "Titled Tuesday Blitz July 6 2021"]
[White "Zubov, Alexander"]
[Black "Viana Da Costa, Fernando"]
[WhiteFideId "14109409"]
[BlackFideId "2111900"]
[WhiteElo "2740"]
[BlackElo "2247"]
[Result "1-0"]
[Round "02"]
[TimeControl "180+1"]
[Date "2021.07.06"]
[WhiteClock "0:00:05"]
[BlackClock "0:00:01"]

1. d4 {[%clk 0:03:00]}  Nf6 {[%clk 0:02:59]} 2. c4 {[%clk 0:03:00]}  e6 {[%clk 0:02:59]} 3. Nf3 {[%clk 0:03:00]}  d5 {[%clk 0:02:58]} 4. Nc3 {[%clk 0:02:59]}  Bb4 {[%clk 0:02:58]} 5. cxd5 {[%clk 0:02:59]}  exd5 {[%clk 0:02:53]} 6. Bg5 {[%clk 0:02:59]}  O-O {[%clk 0:02:51]} 7. Rc1 {[%clk 0:02:58]}  Be6 {[%clk 0:02:45]} 8. e3 {[%clk 0:02:54]}  Nbd7 {[%clk 0:02:44]} 9. Be2 {[%clk 0:02:53]}  h6 {[%clk 0:02:40]} 10. Bh4 {[%clk 0:02:53]}  c6 {[%clk 0:02:37]} 11. O-O {[%clk 0:02:52]}  Re8 {[%clk 0:02:32]} 12. Qb3 {[%clk 0:02:49]}  Qb6 {[%clk 0:02:31]} 13. Qc2 {[%clk 0:02:33]}  a5 {[%clk 0:02:26]} 14. Bd3 {[%clk 0:02:23]}  Rac8 {[%clk 0:02:07]} 15. a3 {[%clk 0:02:10]}  Bd6 {[%clk 0:02:02]} 16. Na4 {[%clk 0:02:10]}  Qc7 {[%clk 0:01:57]} 17. Bg3 {[%clk 0:02:08]}  Bxg3 {[%clk 0:01:46]} 18. hxg3 {[%clk 0:02:08]}  Qd6 {[%clk 0:01:47]} 19. Qc3 {[%clk 0:01:48]}  Ra8 {[%clk 0:01:41]} 20. Nd2 {[%clk 0:01:34]}  Rec8 {[%clk 0:01:21]} 21. Nc5 {[%clk 0:01:28]}  b6 {[%clk 0:01:14]} 22. Nxd7 {[%clk 0:01:24]}  Bxd7 {[%clk 0:01:11]} 23. Nf3 {[%clk 0:01:21]}  c5 {[%clk 0:01:07]} 24. dxc5 {[%clk 0:01:15]}  bxc5 {[%clk 0:01:07]} 25. Rfd1 {[%clk 0:00:53]}  Qe7 {[%clk 0:01:01]} 26. Qe5 {[%clk 0:00:50]}  Be6 {[%clk 0:01:01]} 27. Bb5 {[%clk 0:00:47]}  a4 {[%clk 0:00:56]} 28. Bd3 {[%clk 0:00:39]}  Qb7 {[%clk 0:00:55]} 29. Rb1 {[%clk 0:00:37]}  Rab8 {[%clk 0:00:53]} 30. Qf4 {[%clk 0:00:36]}  Qc7 {[%clk 0:00:43]} 31. Qxa4 {[%clk 0:00:34]}  Rb6 {[%clk 0:00:33]} 32. b4 {[%clk 0:00:29]}  c4 {[%clk 0:00:27]} 33. Be2 {[%clk 0:00:23]}  Ne4 {[%clk 0:00:27]} 34. Rdc1 {[%clk 0:00:19]}  Bf5 {[%clk 0:00:25]} 35. Nd4 {[%clk 0:00:19]}  Bg6 {[%clk 0:00:24]} 36. Ra1 {[%clk 0:00:19]}  Qb7 {[%clk 0:00:20]} 37. Qd1 {[%clk 0:00:17]}  Ra8 {[%clk 0:00:20]} 38. b5 {[%clk 0:00:17]}  Ra5 {[%clk 0:00:17]} 39. Qe1 {[%clk 0:00:15]}  Qa8 {[%clk 0:00:16]} 40. Qb4 {[%clk 0:00:08]}  Ra4 {[%clk 0:00:15]} 41. Qe7 {[%clk 0:00:07]}  Rb7 {[%clk 0:00:12]} 42. Qe5 {[%clk 0:00:08]}  Rb6 {[%clk 0:00:12]} 43. Bf3 {[%clk 0:00:05]}  Nf6 {[%clk 0:00:06]} 44. Rc3 {[%clk 0:00:02]}  Kh7 {[%clk 0:00:06]} 45. g4 {[%clk 0:00:02]}  Rb8 {[%clk 0:00:06]} 46. g5 {[%clk 0:00:02]}  hxg5 {[%clk 0:00:06]} 47. Qxg5 {[%clk 0:00:03]}  Re8 {[%clk 0:00:07]} 48. Qh4+ {[%clk 0:00:04]}  Kg8 {[%clk 0:00:07]} 49. Qf4 {[%clk 0:00:05]}  Qa5 {[%clk 0:00:07]} 50. Rcc1 {[%clk 0:00:04]}  Rxa3 {[%clk 0:00:07]} 51. Rxa3 {[%clk 0:00:05]}  Qxa3 {[%clk 0:00:08]} 52. Rf1 {[%clk 0:00:05]}  Qb4 {[%clk 0:00:08]} 53. Qc7 {[%clk 0:00:05]}  Rf8 {[%clk 0:00:01]} 54. b6 {[%clk 0:00:05]} 1-0


[Site "https://www.chess.com"]

[Event "Titled Tuesday Blitz July 6 2021"]
[White "pooh2012"]
[Black "Korchmar, Vasiliy"]
[BlackFideId "24131750"]
[WhiteElo "2475"]
[BlackElo "2370"]
[Result "1-0"]
[Round "02"]
[TimeControl "180+1"]
[Date "2021.07.06"]
[WhiteClock "0:00:30"]
[BlackClock "0:00:40"]

1. e4 {[%clk 0:03:00]}  c5 {[%clk 0:02:59]} 2. Nf3 {[%clk 0:02:58]}  d6 {[%clk 0:03:00]} 3. d4 {[%clk 0:02:58]}  cxd4 {[%clk 0:03:01]} 4. Nxd4 {[%clk 0:02:58]}  Nf6 {[%clk 0:03:02]} 5. Nc3 {[%clk 0:02:59]}  Nc6 {[%clk 0:03:02]} 6. Bg5 {[%clk 0:02:58]}  e6 {[%clk 0:03:02]} 7. Qd2 {[%clk 0:02:56]}  a6 {[%clk 0:03:03]} 8. f3 {[%clk 0:02:45]}  h6 {[%clk 0:03:00]} 9. Be3 {[%clk 0:02:41]}  Be7 {[%clk 0:03:00]} 10. Be2 {[%clk 0:02:36]}  Nxd4 {[%clk 0:03:00]} 11. Bxd4 {[%clk 0:02:36]}  b5 {[%clk 0:03:01]} 12. a4 {[%clk 0:02:32]}  b4 {[%clk 0:03:00]} 13. Nd1 {[%clk 0:02:33]}  d5 {[%clk 0:02:58]} 14. e5 {[%clk 0:02:30]}  Nd7 {[%clk 0:02:58]} 15. f4 {[%clk 0:02:30]}  a5 {[%clk 0:02:57]} 16. Ne3 {[%clk 0:02:26]}  Ba6 {[%clk 0:02:58]} 17. O-O {[%clk 0:02:24]}  O-O {[%clk 0:02:51]} 18. f5 {[%clk 0:02:18]}  Bxe2 {[%clk 0:01:56]} 19. Qxe2 {[%clk 0:02:15]}  Bc5 {[%clk 0:01:55]} 20. c3 {[%clk 0:02:00]}  Qh4 {[%clk 0:01:43]} 21. g3 {[%clk 0:01:31]}  Qg5 {[%clk 0:01:34]} 22. Rf4 {[%clk 0:01:31]}  bxc3 {[%clk 0:01:31]} 23. bxc3 {[%clk 0:01:10]}  Kh8 {[%clk 0:01:26]} 24. f6 {[%clk 0:00:49]}  gxf6 {[%clk 0:01:12]} 25. Rg4 {[%clk 0:00:47]}  fxe5 {[%clk 0:00:39]} 26. Rxg5 {[%clk 0:00:44]}  hxg5 {[%clk 0:00:39]} 27. Qh5+ {[%clk 0:00:39]}  Kg7 {[%clk 0:00:40]} 28. Qxg5+ {[%clk 0:00:40]}  Kh7 {[%clk 0:00:40]} 29. Bxc5 {[%clk 0:00:31]}  Nxc5 {[%clk 0:00:41]} 30. Ng4 {[%clk 0:00:31]}  Rg8 {[%clk 0:00:41]} 31. Nf6+ {[%clk 0:00:30]}  Kh8 {[%clk 0:00:40]} 32. Qh6# {[%clk 0:00:30]} 1-0


[Site "https://www.chess.com"]

[Event "Titled Tuesday Blitz July 6 2021"]
[White "Abdurakhmonov, Mukhammadali"]
[Black "Quparadze, Giga"]
[WhiteFideId "14207346"]
[BlackFideId "13602250"]
[WhiteElo "2266"]
[BlackElo "2658"]
[Result "1-0"]
[Round "03"]
[TimeControl "180+1"]
[Date "2021.07.06"]
[WhiteClock "0:00:03"]
[BlackClock "0:00:06"]

1. e4 {[%clk 0:03:00]}  c5 {[%clk 0:02:59]} 2. Nc3 {[%clk 0:02:59]}  a6 {[%clk 0:02:59]} 3. g3 {[%clk 0:02:57]}  b5 {[%clk 0:02:59]} 4. Bg2 {[%clk 0:02:58]}  Bb7 {[%clk 0:02:59]} 5. Nge2 {[%clk 0:02:58]}  e6 {[%clk 0:02:59]} 6. d4 {[%clk 0:02:57]}  cxd4 {[%clk 0:03:00]} 7. Nxd4 {[%clk 0:02:58]}  Nc6 {[%clk 0:03:00]} 8. O-O {[%clk 0:02:58]}  Nxd4 {[%clk 0:03:01]} 9. Qxd4 {[%clk 0:02:59]}  Ne7 {[%clk 0:03:01]} 10. Re1 {[%clk 0:02:57]}  Nc6 {[%clk 0:03:00]} 11. Qd1 {[%clk 0:02:58]}  Ne5 {[%clk 0:03:00]} 12. f4 {[%clk 0:02:51]}  Nc4 {[%clk 0:02:55]} 13. b3 {[%clk 0:02:42]}  Qb6+ {[%clk 0:02:41]} 14. Kh1 {[%clk 0:02:41]}  Bb4 {[%clk 0:02:41]} 15. Qd3 {[%clk 0:02:31]}  Qa5 {[%clk 0:02:41]} 16. Rd1 {[%clk 0:02:02]}  O-O {[%clk 0:02:36]} 17. Ne2 {[%clk 0:01:58]}  Na3 {[%clk 0:02:29]} 18. c3 {[%clk 0:01:54]}  Be7 {[%clk 0:02:29]} 19. Bb2 {[%clk 0:01:46]}  Rad8 {[%clk 0:02:24]} 20. Nd4 {[%clk 0:01:33]}  d5 {[%clk 0:02:20]} 21. e5 {[%clk 0:01:31]}  g6 {[%clk 0:02:18]} 22. g4 {[%clk 0:01:27]}  b4 {[%clk 0:02:09]} 23. f5 {[%clk 0:01:24]}  exf5 {[%clk 0:02:08]} 24. gxf5 {[%clk 0:01:25]}  Bg5 {[%clk 0:01:53]} 25. Qg3 {[%clk 0:01:18]}  Bh6 {[%clk 0:01:53]} 26. f6 {[%clk 0:01:02]}  Kh8 {[%clk 0:01:41]} 27. e6 {[%clk 0:00:56]}  fxe6 {[%clk 0:01:26]} 28. Nxe6 {[%clk 0:00:54]}  d4 {[%clk 0:01:26]} 29. cxd4 {[%clk 0:00:30]}  Bxg2+ {[%clk 0:01:20]} 30. Qxg2 {[%clk 0:00:31]}  Nc2 {[%clk 0:01:20]} 31. d5 {[%clk 0:00:23]}  Rf7 {[%clk 0:01:11]} 32. Qxc2 {[%clk 0:00:22]}  Re8 {[%clk 0:01:06]} 33. Qc4 {[%clk 0:00:22]}  Qb6 {[%clk 0:01:04]} 34. Bd4 {[%clk 0:00:20]}  Qb7 {[%clk 0:01:00]} 35. Re1 {[%clk 0:00:17]}  Rc8 {[%clk 0:00:58]} 36. Nc5 {[%clk 0:00:17]}  Qb8 {[%clk 0:00:52]} 37. Re7 {[%clk 0:00:17]}  Qf4 {[%clk 0:00:44]} 38. Rxf7 {[%clk 0:00:11]}  Qf3+ {[%clk 0:00:39]} 39. Kg1 {[%clk 0:00:11]}  Qg4+ {[%clk 0:00:28]} 40. Kf1 {[%clk 0:00:11]}  Qf3+ {[%clk 0:00:25]} 41. Bf2 {[%clk 0:00:10]}  Qh1+ {[%clk 0:00:25]} 42. Bg1 {[%clk 0:00:10]}  Qf3+ {[%clk 0:00:25]} 43. Bf2 {[%clk 0:00:06]}  Be3 {[%clk 0:00:22]} 44. Qh4 {[%clk 0:00:05]}  h5 {[%clk 0:00:16]} 45. Qg3 {[%clk 0:00:05]}  Qh1+ {[%clk 0:00:12]} 46. Ke2 {[%clk 0:00:05]}  Qxa1 {[%clk 0:00:11]} 47. Qxe3 {[%clk 0:00:06]}  Qb2+ {[%clk 0:00:07]} 48. Kf1 {[%clk 0:00:03]}  Qb1+ {[%clk 0:00:04]} 49. Kg2 {[%clk 0:00:02]}  g5 {[%clk 0:00:05]} 50. Qxg5 {[%clk 0:00:02]}  Qe4+ {[%clk 0:00:05]} 51. Nxe4 {[%clk 0:00:01]}  Rg8 {[%clk 0:00:06]} 52. Rg7 {[%clk 0:00:02]}  Rxg7 {[%clk 0:00:06]} 53. Qxg7# {[%clk 0:00:03]} 1-0


[Site "https://www.chess.com"]

[Event "Titled Tuesday Blitz July 6 2021"]
[White "Abrashkin, Boris"]
[Black "Ibrahimli, Murad"]
[WhiteFideId "4120582"]
[BlackFideId "13410229"]
[WhiteElo "2586"]
[BlackElo "2109"]
[Result "1-0"]
[Round "03"]
[TimeControl "180+1"]
[Date "2021.07.06"]
[WhiteClock "0:00:49"]
[BlackClock "0:00:05"]

1. d4 {[%clk 0:03:00]}  d5 {[%clk 0:03:00]} 2. c4 {[%clk 0:02:53]}  c6 {[%clk 0:02:59]} 3. Nc3 {[%clk 0:02:53]}  Nf6 {[%clk 0:02:58]} 4. e3 {[%clk 0:02:54]}  e6 {[%clk 0:02:57]} 5. Nf3 {[%clk 0:02:54]}  Nbd7 {[%clk 0:02:56]} 6. Bd3 {[%clk 0:02:52]}  dxc4 {[%clk 0:02:56]} 7. Bxc4 {[%clk 0:02:53]}  b5 {[%clk 0:02:57]} 8. Bd3 {[%clk 0:02:53]}  a6 {[%clk 0:02:57]} 9. e4 {[%clk 0:02:54]}  c5 {[%clk 0:02:57]} 10. d5 {[%clk 0:02:54]}  c4 {[%clk 0:02:55]} 11. Bc2 {[%clk 0:02:54]}  Qc7 {[%clk 0:02:53]} 12. dxe6 {[%clk 0:02:50]}  fxe6 {[%clk 0:02:53]} 13. O-O {[%clk 0:02:51]}  Bb7 {[%clk 0:02:53]} 14. Ng5 {[%clk 0:02:48]}  Nc5 {[%clk 0:02:52]} 15. Be3 {[%clk 0:02:48]}  h6 {[%clk 0:02:27]} 16. Nxe6 {[%clk 0:02:48]}  Nxe6 {[%clk 0:02:25]} 17. e5 {[%clk 0:02:49]}  Qxe5 {[%clk 0:01:58]} 18. Bg6+ {[%clk 0:02:49]}  Ke7 {[%clk 0:01:58]} 19. Re1 {[%clk 0:02:49]}  Rd8 {[%clk 0:01:32]} 20. Qxd8+ {[%clk 0:02:49]}  Kxd8 {[%clk 0:01:26]} 21. Bb6+ {[%clk 0:02:49]}  Qc7 {[%clk 0:01:25]} 22. Rxe6 {[%clk 0:02:49]}  Qxb6 {[%clk 0:01:25]} 23. Rxb6 {[%clk 0:02:48]}  Kc7 {[%clk 0:01:26]} 24. Re6 {[%clk 0:02:45]}  Bc5 {[%clk 0:01:26]} 25. Kf1 {[%clk 0:02:25]}  Rd8 {[%clk 0:01:24]} 26. Rd1 {[%clk 0:02:24]}  Rxd1+ {[%clk 0:01:17]} 27. Nxd1 {[%clk 0:02:25]}  Bd5 {[%clk 0:01:11]} 28. Re1 {[%clk 0:02:05]}  b4 {[%clk 0:00:38]} 29. Ne3 {[%clk 0:01:56]}  Be6 {[%clk 0:00:38]} 30. Rc1 {[%clk 0:01:56]}  Bxe3 {[%clk 0:00:34]} 31. fxe3 {[%clk 0:01:57]}  Kd6 {[%clk 0:00:34]} 32. Ke2 {[%clk 0:01:51]}  a5 {[%clk 0:00:34]} 33. h3 {[%clk 0:01:45]}  Kc5 {[%clk 0:00:29]} 34. g4 {[%clk 0:01:30]}  Nd7 {[%clk 0:00:29]} 35. Bf5 {[%clk 0:01:28]}  Nf8 {[%clk 0:00:26]} 36. Bxe6 {[%clk 0:01:28]}  Nxe6 {[%clk 0:00:27]} 37. Rf1 {[%clk 0:01:01]}  a4 {[%clk 0:00:27]} 38. Rf5+ {[%clk 0:01:01]}  Kc6 {[%clk 0:00:27]} 39. a3 {[%clk 0:00:57]}  c3 {[%clk 0:00:24]} 40. bxc3 {[%clk 0:00:56]}  bxa3 {[%clk 0:00:22]} 41. Rf1 {[%clk 0:00:50]}  Nc7 {[%clk 0:00:15]} 42. Ra1 {[%clk 0:00:48]}  Nb5 {[%clk 0:00:15]} 43. c4 {[%clk 0:00:48]}  Nd6 {[%clk 0:00:05]} 44. Rxa3 {[%clk 0:00:48]}  Nxc4 {[%clk 0:00:05]} 45. Rxa4 {[%clk 0:00:49]} 1-0


[Site "https://www.chess.com"]